Workbook

Sheet 月度大學預算
B1: 每月
A2: ="" ->  | B2: 大學預算
B5: =chart_calcs!$D$6 -> 年度 收入: | F5: =chart_calcs!$D$7 -> 年度 支出: | N5: =chart_calcs!$D$8 -> 年度 現金流:
B6: =" "&chart_calcs!$F$6 -> ¥72,750 | F6: =" "&chart_calcs!$F$7 -> ¥66,990 | N6: =" "&chart_calcs!$F$8 -> ¥5,760
B26: 1月 | C26: 選取第一個預算月份
Q27: =SelectedPeriod -> 3 月
B28: 扣除支出後每月現金 | D28: =FirstMonth -> 1月 | E28: =NextMonth -> 2 月 | F28: 3 月 | G28: 4 月 | H28: 5 月 | I28: 6 月 | J28: 7 月 | K28: 8 月 | L28: 9 月 | M28: 10 月 | N28: 11 月 | O28: 12 月 | P28: 年度 | Q28: % INC
B29: 現金流 | D29: =D38-D73 -> 5,070 | E29: 2,070 | F29: 5,760 | G29: 5,970 | H29: 6,120 | I29: (23,130) | J29: 3,720 | K29: 4,620 | L29: (21,630) | M29: 3,270 | N29: 1,020 | O29: (1,830) | P29: =SUM(D29:O29) -> (8,970) | Q29: =INDEX($D29:$P29,,SelectedPeriodColumn)/INDEX($D$38:$P$38,,SelectedPeriodColumn) -> 7.9%
B30: 累積現金流 | D30: =SUM($D$29:D$29) -> 5,070 | E30: =SUM($D$29:E$29) -> 7,140 | F30: =SUM($D$29:F$29) -> 12,900 | G30: =SUM($D$29:G$29) -> 18,870 | H30: =SUM($D$29:H$29) -> 24,990 | I30: =SUM($D$29:I$29) -> 1,860 | J30: =SUM($D$29:J$29) -> 5,580 | K30: =SUM($D$29:K$29) -> 10,200 | L30: =SUM($D$29:L$29) -> (11,430) | M30: =SUM($D$29:M$29) -> (8,160) | N30: =SUM($D$29:N$29) -> (7,140) | O30: =SUM($D$29:O$29) -> (8,970)
B32: 總收入 | D32: =FirstMonth -> 1月 | E32: =NextMonth -> 2 月 | F32: 3 月 | G32: 4 月 | H32: 5 月 | I32: 6 月 | J32: 7 月 | K32: 8 月 | L32: 9 月 | M32: 10 月 | N32: 11 月 | O32: 12 月 | P32: 年度 | Q32: % INC
B33: 財務補助 (補助金、獎學金、貸款) 支付 | D33: 0 | E33: 0 | F33: 22,500 | G33: 22,500 | H33: 22,500 | I33: 22,500 | J33: 22,500 | K33: 22,500 | L33: 22,500 | M33: 22,500 | N33: 22,500 | O33: 22,500 | P33: =SUM(D33:O33) -> 225,000 | Q33: =INDEX($D33:$P33,,SelectedPeriodColumn)/INDEX($D$38:$P$38,,SelectedPeriodColumn) -> 30.9%
B34: 稅後工作薪資 | D34: 13,500 | E34: 13,500 | F34: 13,500 | G34: 13,500 | H34: 13,500 | I34: 13,500 | J34: 13,500 | K34: 13,500 | L34: 16,500 | M34: 10,500 | N34: 10,500 | O34: 10,500 | P34: 156,000 | Q34: =INDEX($D34:$P34,,SelectedPeriodColumn)/INDEX($D$38:$P$38,,SelectedPeriodColumn) -> 18.6%
B35: 家庭財務資助 | D35: 6,000 | E35: 6,000 | F35: 30,000 | G35: 10,500 | H35: 10,500 | I35: 10,500 | J35: 10,500 | K35: 10,500 | L35: 10,500 | M35: 10,500 | N35: 10,500 | O35: 10,500 | P35: 136,500 | Q35: =INDEX($D35:$P35,,SelectedPeriodColumn)/INDEX($D$38:$P$38,,SelectedPeriodColumn) -> 41.2%
B36: 存款提領 | D36: 15,000 | E36: 10,500 | F36: 4,500 | G36: 0 | H36: 0 | I36: 0 | J36: 0 | K36: 0 | L36: 0 | M36: 0 | N36: 0 | O36: 0 | P36: 30,000 | Q36: =INDEX($D36:$P36,,SelectedPeriodColumn)/INDEX($D$38:$P$38,,SelectedPeriodColumn) -> 6.2%
B37: 其他 (育兒津貼、公共補助、禮物等) | D37: 2,250 | E37: 2,250 | F37: 2,250 | G37: 2,250 | H37: 2,250 | I37: 2,250 | J37: 2,250 | K37: 2,250 | L37: 2,250 | M37: 2,250 | N37: 2,250 | O37: 2,250 | P37: 27,000 | Q37: =INDEX($D37:$P37,,SelectedPeriodColumn)/INDEX($D$38:$P$38,,SelectedPeriodColumn) -> 3.1%
B38: 總收入 | D38: =SUM(D33:D37) -> 36,750 | E38: 32,250 | F38: 72,750 | G38: 48,750 | H38: 48,750 | I38: 48,750 | J38: 48,750 | K38: 48,750 | L38: 51,750 | M38: 45,750 | N38: 45,750 | O38: 45,750 | P38: 574,500 | Q38: =INDEX($D38:$P38,,SelectedPeriodColumn)/INDEX($D$38:$P$38,,SelectedPeriodColumn) -> 100.0%
B40: 月支出 | D40: =FirstMonth -> 1月 | E40: =NextMonth -> 2 月 | F40: 3 月 | G40: 4 月 | H40: 5 月 | I40: 6 月 | J40: 7 月 | K40: 8 月 | L40: 9 月 | M40: 10 月 | N40: 11 月 | O40: 12 月 | P40: 年度 | Q40: % INC
B41: 食宿 | D41: =SUM(D42:D44) -> 16,950 | E41: 16,950 | F41: 16,950 | G41: 16,950 | H41: 16,950 | I41: 16,950 | J41: 16,950 | K41: 16,950 | L41: 16,950 | M41: 16,950 | N41: 16,950 | O41: 16,950 | P41: =SUM(D41:O41) -> 203,400 | Q41: =INDEX($D41:$P41,,SelectedPeriodColumn)/INDEX($D$73:$P$73,,SelectedPeriodColumn) -> 25.3%
C42: 房租、貸款或宿舍 | D42: 9,450 | E42: 9,450 | F42: 9,450 | G42: 9,450 | H42: 9,450 | I42: 9,450 | J42: 9,450 | K42: 9,450 | L42: 9,450 | M42: 9,450 | N42: 9,450 | O42: 9,450 | P42: =SUM(D42:O42) -> 113,400 | Q42: =INDEX($D42:$P42,,SelectedPeriodColumn)/INDEX($D$73:$P$73,,SelectedPeriodColumn) -> 14.1%
C43: 食物 (雜貨或餐點費) | D43: 6,000 | E43: 6,000 | F43: 6,000 | G43: 6,000 | H43: 6,000 | I43: 6,000 | J43: 6,000 | K43: 6,000 | L43: 6,000 | M43: 6,000 | N43: 6,000 | O43: 6,000 | P43: =SUM(D43:O43) -> 72,000 | Q43: =INDEX($D43:$P43,,SelectedPeriodColumn)/INDEX($D$73:$P$73,,SelectedPeriodColumn) -> 9.0%
C44: 水電費 (暖器、水、電) | D44: 1,500 | E44: 1,500 | F44: 1,500 | G44: 1,500 | H44: 1,500 | I44: 1,500 | J44: 1,500 | K44: 1,500 | L44: 1,500 | M44: 1,500 | N44: 1,500 | O44: 1,500 | P44: =SUM(D44:O44) -> 18,000 | Q44: =INDEX($D44:$P44,,SelectedPeriodColumn)/INDEX($D$73:$P$73,,SelectedPeriodColumn) -> 2.2%
B46: 學費和手續費 | D46: =SUM(D47:D48) -> 0 | E46: 0 | F46: 22,500 | G46: 0 | H46: 0 | I46: 19,500 | J46: 0 | K46: 0 | L46: 19,500 | M46: 0 | N46: 0 | O46: 0 | P46: =SUM(D46:O46) -> 61,500 | Q46: =INDEX($D46:$P46,,SelectedPeriodColumn)/INDEX($D$73:$P$73,,SelectedPeriodColumn) -> 33.6%
C47: 實付學費 | D47: 0 | E47: 0 | F47: 15,000 | G47: 0 | H47: 0 | I47: 15,000 | J47: 0 | K47: 0 | L47: 15,000 | M47: 0 | N47: 0 | O47: 0 | P47: =SUM(D47:O47) -> 45,000 | Q47: =INDEX($D47:$P47,,SelectedPeriodColumn)/INDEX($D$73:$P$73,,SelectedPeriodColumn) -> 22.4%
C48: 實付手續費 | D48: 0 | E48: 0 | F48: 7,500 | G48: 0 | H48: 0 | I48: 4,500 | J48: 0 | K48: 0 | L48: 4,500 | M48: 0 | N48: 0 | O48: 0 | P48: =SUM(D48:O48) -> 16,500 | Q48: =INDEX($D48:$P48,,SelectedPeriodColumn)/INDEX($D$73:$P$73,,SelectedPeriodColumn) -> 11.2%
B50: 書籍和用品 | D50: =SUM(D51:D52) -> 0 | E50: 0 | F50: 9,750 | G50: 600 | H50: 600 | I50: 9,750 | J50: 300 | K50: 300 | L50: 12,000 | M50: 450 | N50: 450 | O50: 450 | P50: =SUM(D50:O50) -> 34,650 | Q50: =INDEX($D50:$P50,,SelectedPeriodColumn)/INDEX($D$73:$P$73,,SelectedPeriodColumn) -> 14.6%
C51: 教科書 | D51: 0 | E51: 0 | F51: 6,750 | G51: 0 | H51: 0 | I51: 8,250 | J51: 0 | K51: 0 | L51: 9,750 | M51: 0 | N51: 0 | O51: 0 | P51: =SUM(D51:O51) -> 24,750 | Q51: =INDEX($D51:$P51,,SelectedPeriodColumn)/INDEX($D$73:$P$73,,SelectedPeriodColumn) -> 10.1%
C52: 學校用品 | D52: 0 | E52: 0 | F52: 3,000 | G52: 600 | H52: 600 | I52: 1,500 | J52: 300 | K52: 300 | L52: 2,250 | M52: 450 | N52: 450 | O52: 450 | P52: =SUM(D52:O52) -> 9,900 | Q52: =INDEX($D52:$P52,,SelectedPeriodColumn)/INDEX($D$73:$P$73,,SelectedPeriodColumn) -> 4.5%
B54: 交通 | D54: =SUM(D55:D58) -> 6,720 | E54: 5,220 | F54: 5,220 | G54: 6,570 | H54: 5,220 | I54: 5,220 | J54: 8,220 | K54: 6,570 | L54: 5,220 | M54: 5,220 | N54: 6,720 | O54: 8,070 | P54: =SUM(D54:O54) -> 74,190 | Q54: =INDEX($D54:$P54,,SelectedPeriodColumn)/INDEX($D$73:$P$73,,SelectedPeriodColumn) -> 7.8%
C55: 瓦斯、維修費用 | D55: 900 | E55: 900 | F55: 900 | G55: 2,250 | H55: 900 | I55: 900 | J55: 900 | K55: 2,250 | L55: 900 | M55: 900 | N55: 900 | O55: 2,250 | P55: =SUM(D55:O55) -> 14,850 | Q55: =INDEX($D55:$P55,,SelectedPeriodColumn)/INDEX($D$73:$P$73,,SelectedPeriodColumn) -> 1.3%
C56: 車輛支出 | D56: 3,870 | E56: 3,870 | F56: 3,870 | G56: 3,870 | H56: 3,870 | I56: 3,870 | J56: 3,870 | K56: 3,870 | L56: 3,870 | M56: 3,870 | N56: 3,870 | O56: 3,870 | P56: =SUM(D56:O56) -> 46,440 | Q56: =INDEX($D56:$P56,,SelectedPeriodColumn)/INDEX($D$73:$P$73,,SelectedPeriodColumn) -> 5.8%
C57: 轉帳費用 | D57: 450 | E57: 450 | F57: 450 | G57: 450 | H57: 450 | I57: 450 | J57: 450 | K57: 450 | L57: 450 | M57: 450 | N57: 450 | O57: 450 | P57: =SUM(D57:O57) -> 5,400 | Q57: =INDEX($D57:$P57,,SelectedPeriodColumn)/INDEX($D$73:$P$73,,SelectedPeriodColumn) -> 0.7%
C58: 假期旅行 | D58: 1,500 | E58: 0 | F58: 0 | G58: 0 | H58: 0 | I58: 0 | J58: 3,000 | K58: 0 | L58: 0 | M58: 0 | N58: 1,500 | O58: 1,500 | P58: =SUM(D58:O58) -> 7,500 | Q58: =INDEX($D58:$P58,,SelectedPeriodColumn)/INDEX($D$73:$P$73,,SelectedPeriodColumn) -> 0.0%
B60: 選擇性 | D60: =SUM(D61:D66) -> 2,070 | E60: 2,070 | F60: 5,070 | G60: 11,070 | H60: 12,570 | I60: 13,320 | J60: 12,570 | K60: 12,570 | L60: 11,820 | M60: 11,820 | N60: 12,570 | O60: 14,070 | P60: =SUM(D60:O60) -> 121,590 | Q60: =INDEX($D60:$P60,,SelectedPeriodColumn)/INDEX($D$73:$P$73,,SelectedPeriodColumn) -> 7.6%
C61: 存款 | D61: 0 | E61: 0 | F61: 0 | G61: 1,500 | H61: 3,000 | I61: 3,000 | J61: 3,000 | K61: 3,000 | L61: 2,250 | M61: 2,250 | N61: 3,000 | O61: 3,000 | P61: 24,000 | Q61: =INDEX($D61:$P61,,SelectedPeriodColumn)/INDEX($D$73:$P$73,,SelectedPeriodColumn) -> 0.0%
C62: 手機、網路、有線電視 | D62: 2,070 | E62: 2,070 | F62: 2,070 | G62: 2,070 | H62: 2,070 | I62: 2,070 | J62: 2,070 | K62: 2,070 | L62: 2,070 | M62: 2,070 | N62: 2,070 | O62: 2,070 | P62: 24,840 | Q62: =INDEX($D62:$P62,,SelectedPeriodColumn)/INDEX($D$73:$P$73,,SelectedPeriodColumn) -> 3.1%
C63: 捐款 | D63: 0 | E63: 0 | F63: 0 | G63: 0 | H63: 0 | I63: 750 | J63: 0 | K63: 0 | L63: 0 | M63: 0 | N63: 0 | O63: 1,500 | P63: 2,250 | Q63: =INDEX($D63:$P63,,SelectedPeriodColumn)/INDEX($D$73:$P$73,,SelectedPeriodColumn) -> 0.0%
C64: 零食、外出用餐 | D64: 0 | E64: 0 | F64: 3,000 | G64: 3,000 | H64: 3,000 | I64: 3,000 | J64: 3,000 | K64: 3,000 | L64: 3,000 | M64: 3,000 | N64: 3,000 | O64: 3,000 | P64: 30,000 | Q64: =INDEX($D64:$P64,,SelectedPeriodColumn)/INDEX($D$73:$P$73,,SelectedPeriodColumn) -> 4.5%
C65: 置裝費 | D65: 0 | E65: 0 | F65: 0 | G65: 1,500 | H65: 1,500 | I65: 1,500 | J65: 1,500 | K65: 1,500 | L65: 1,500 | M65: 1,500 | N65: 1,500 | O65: 1,500 | P65: 13,500 | Q65: =INDEX($D65:$P65,,SelectedPeriodColumn)/INDEX($D$73:$P$73,,SelectedPeriodColumn) -> 0.0%
C66: 娛樂費 (電影、約會、音樂會) | D66: 0 | E66: 0 | F66: 0 | G66: 3,000 | H66: 3,000 | I66: 3,000 | J66: 3,000 | K66: 3,000 | L66: 3,000 | M66: 3,000 | N66: 3,000 | O66: 3,000 | P66: 27,000 | Q66: =INDEX($D66:$P66,,SelectedPeriodColumn)/INDEX($D$73:$P$73,,SelectedPeriodColumn) -> 0.0%
B68: 其他開支 | D68: =SUM(D69:D71) -> 5,940 | E68: =SUM(E69:E71) -> 5,940 | F68: 7,500 | G68: 7,590 | H68: 7,290 | I68: 7,140 | J68: 6,990 | K68: 7,740 | L68: 7,890 | M68: 8,040 | N68: 8,040 | O68: 8,040 | P68: =SUM(D68:O68) -> 88,140 | Q68: =INDEX($D68:$P68,,SelectedPeriodColumn)/INDEX($D$73:$P$73,,SelectedPeriodColumn) -> 11.2%
C69: 保險 (汽車、保健、租屋) | D69: 3,690 | E69: 3,690 | F69: 3,690 | G69: 3,690 | H69: 3,690 | I69: 3,690 | J69: 3,690 | K69: 3,690 | L69: 3,690 | M69: 3,690 | N69: 3,690 | O69: 3,690 | P69: =SUM(D69:O69) -> 44,280 | Q69: =INDEX($D69:$P69,,SelectedPeriodColumn)/INDEX($D$73:$P$73,,SelectedPeriodColumn) -> 5.5%
C70: 貸款、信用卡費用 | D70: 0 | E70: 0 | F70: 1,560 | G70: 1,650 | H70: 1,350 | I70: 1,200 | J70: 1,050 | K70: 1,800 | L70: 1,950 | M70: 2,100 | N70: 2,100 | O70: 2,100 | P70: =SUM(D70:O70) -> 16,860 | Q70: =INDEX($D70:$P70,,SelectedPeriodColumn)/INDEX($D$73:$P$73,,SelectedPeriodColumn) -> 2.3%
C71: 其他 | D71: 2,250 | E71: 2,250 | F71: 2,250 | G71: 2,250 | H71: 2,250 | I71: 2,250 | J71: 2,250 | K71: 2,250 | L71: 2,250 | M71: 2,250 | N71: 2,250 | O71: 2,250 | P71: =SUM(D71:O71) -> 27,000 | Q71: =INDEX($D71:$P71,,SelectedPeriodColumn)/INDEX($D$73:$P$73,,SelectedPeriodColumn) -> 3.4%
B73: 總支出 | D73: =SUM(D41,D46,D50,D54,D60,D68) -> 31,680 | E73: 30,180 | F73: 66,990 | G73: 42,780 | H73: 42,630 | I73: 71,880 | J73: 45,030 | K73: 44,130 | L73: 73,380 | M73: 42,480 | N73: 44,730 | O73: 47,580 | P73: =SUM(D73:O73) -> 583,470 | Q73: =INDEX($D73:$P73,,SelectedPeriodColumn)/INDEX($D$73:$P$73,,SelectedPeriodColumn) -> 100.0%

Sheet chart_calcs (hidden)
A1: ***此工作表會隱藏***
D3: =IFERROR(LOWER(TEXT(VALUE(SelectedPeriod&" 1"),"mmmm")),"年度") -> 年度
D5: 動態圖表標題
D6: =D3&" 收入:" -> 年度 收入: | F6: =TEXT(INDEX(月度大學預算!$D$38:$P$38,,SelectedPeriodColumn),"¥#,###") -> ¥72,750
D7: =D3&" 支出:" -> 年度 支出: | F7: =TEXT(INDEX(月度大學預算!$D$73:$P$73,,SelectedPeriodColumn),"¥#,###") -> ¥66,990
D8: =D3&" 現金流:" -> 年度 現金流: | E8: =INDEX(月度大學預算!D29:P29,ScrollBarValue) -> 5760 | F8: =TEXT(E8,"¥#,###") -> ¥5,760
D12: =LOWER(月度大學預算!D28) -> 1月 | E12: =LOWER(月度大學預算!E28) -> 2 月 | F12: =LOWER(月度大學預算!F28) -> 3 月 | G12: =LOWER(月度大學預算!G28) -> 4 月 | H12: =LOWER(月度大學預算!H28) -> 5 月 | I12: =LOWER(月度大學預算!I28) -> 6 月 | J12: =LOWER(月度大學預算!J28) -> 7 月 | K12: =LOWER(月度大學預算!K28) -> 8 月 | L12: =LOWER(月度大學預算!L28) -> 9 月 | M12: =LOWER(月度大學預算!M28) -> 10 月 | N12: =LOWER(月度大學預算!N28) -> 11 月 | O12: =LOWER(月度大學預算!O28) -> 12 月 | P12: =LOWER(月度大學預算!P28) -> 年度
C13: 轉軸值： | D13: 3
C14: 現金流圖： | D14: =IF(SelectedPeriod=月度大學預算!D$32,IF(月度大學預算!$D$29:$P$29>=0,月度大學預算!$D$29:$P$29,NA()),NA()) ->  | E14: =IF(SelectedPeriod=月度大學預算!E$32,IF(月度大學預算!$D$29:$P$29>=0,月度大學預算!$D$29:$P$29,NA()),NA()) ->  | F14: =IF(SelectedPeriod=月度大學預算!F$32,IF(月度大學預算!$D$29:$P$29>=0,月度大學預算!$D$29:$P$29,NA()),NA()) -> 5760 | G14: =IF(SelectedPeriod=月度大學預算!G$32,IF(月度大學預算!$D$29:$P$29>=0,月度大學預算!$D$29:$P$29,NA()),NA()) ->  | H14: =IF(SelectedPeriod=月度大學預算!H$32,IF(月度大學預算!$D$29:$P$29>=0,月度大學預算!$D$29:$P$29,NA()),NA()) ->  | I14: =IF(SelectedPeriod=月度大學預算!I$32,IF(月度大學預算!$D$29:$P$29>=0,月度大學預算!$D$29:$P$29,NA()),NA()) ->  | J14: =IF(SelectedPeriod=月度大學預算!J$32,IF(月度大學預算!$D$29:$P$29>=0,月度大學預算!$D$29:$P$29,NA()),NA()) ->  | K14: =IF(SelectedPeriod=月度大學預算!K$32,IF(月度大學預算!$D$29:$P$29>=0,月度大學預算!$D$29:$P$29,NA()),NA()) ->  | L14: =IF(SelectedPeriod=月度大學預算!L$32,IF(月度大學預算!$D$29:$P$29>=0,月度大學預算!$D$29:$P$29,NA()),NA()) ->  | M14: =IF(SelectedPeriod=月度大學預算!M$32,IF(月度大學預算!$D$29:$P$29>=0,月度大學預算!$D$29:$P$29,NA()),NA()) ->  | N14: =IF(SelectedPeriod=月度大學預算!N$32,IF(月度大學預算!$D$29:$P$29>=0,月度大學預算!$D$29:$P$29,NA()),NA()) ->  | O14: =IF(SelectedPeriod=月度大學預算!O$32,IF(月度大學預算!$D$29:$P$29>=0,月度大學預算!$D$29:$P$29,NA()),NA()) ->  | P14: =IF(SelectedPeriod=月度大學預算!P$32,IF(月度大學預算!$D$29:$P$29>=0,月度大學預算!$D$29:$P$29,NA()),NA()) -> 
C15: 累計： | D15: =IF(SelectedPeriod=月度大學預算!D$32,IF(月度大學預算!$D$29:$P$29<0,月度大學預算!$D$29:$P$29,NA()),NA()) ->  | E15: =IF(SelectedPeriod=月度大學預算!E$32,IF(月度大學預算!$D$29:$P$29<0,月度大學預算!$D$29:$P$29,NA()),NA()) ->  | F15: =IF(SelectedPeriod=月度大學預算!F$32,IF(月度大學預算!$D$29:$P$29<0,月度大學預算!$D$29:$P$29,NA()),NA()) ->  | G15: =IF(SelectedPeriod=月度大學預算!G$32,IF(月度大學預算!$D$29:$P$29<0,月度大學預算!$D$29:$P$29,NA()),NA()) ->  | H15: =IF(SelectedPeriod=月度大學預算!H$32,IF(月度大學預算!$D$29:$P$29<0,月度大學預算!$D$29:$P$29,NA()),NA()) ->  | I15: =IF(SelectedPeriod=月度大學預算!I$32,IF(月度大學預算!$D$29:$P$29<0,月度大學預算!$D$29:$P$29,NA()),NA()) ->  | J15: =IF(SelectedPeriod=月度大學預算!J$32,IF(月度大學預算!$D$29:$P$29<0,月度大學預算!$D$29:$P$29,NA()),NA()) ->  | K15: =IF(SelectedPeriod=月度大學預算!K$32,IF(月度大學預算!$D$29:$P$29<0,月度大學預算!$D$29:$P$29,NA()),NA()) ->  | L15: =IF(SelectedPeriod=月度大學預算!L$32,IF(月度大學預算!$D$29:$P$29<0,月度大學預算!$D$29:$P$29,NA()),NA()) ->  | M15: =IF(SelectedPeriod=月度大學預算!M$32,IF(月度大學預算!$D$29:$P$29<0,月度大學預算!$D$29:$P$29,NA()),NA()) ->  | N15: =IF(SelectedPeriod=月度大學預算!N$32,IF(月度大學預算!$D$29:$P$29<0,月度大學預算!$D$29:$P$29,NA()),NA()) ->  | O15: =IF(SelectedPeriod=月度大學預算!O$32,IF(月度大學預算!$D$29:$P$29<0,月度大學預算!$D$29:$P$29,NA()),NA()) ->  | P15: =IF(SelectedPeriod=月度大學預算!P$32,IF(月度大學預算!$D$29:$P$29<0,月度大學預算!$D$29:$P$29,NA()),NA()) ->  | S15: 1
C18: 收入圖表資料
C19: 財務補助 (補助金、獎學金、貸款) 支付 | D19: =月度大學預算!Q33 -> 30.9%
C20: 稅後工作薪資 | D20: =月度大學預算!Q34 -> 18.6%
C21: 家庭財務資助 | D21: =月度大學預算!Q35 -> 41.2% | T21: ¥
C22: 存款提領 | D22: =月度大學預算!Q36 -> 6.2%
C23: 其他 (育兒津貼、公共補助、禮物等) | D23: =月度大學預算!Q37 -> 3.1%
D28: =IF(SelectedStartMonth="1月","JAN",IF(SelectedStartMonth="2月","FEB",IF(SelectedStartMonth="3月","MAR",IF(SelectedStartMonth="4月","APR",IF(SelectedStartMonth="5月","MAY",IF(SelectedStartMonth="6月","JUN",IF(SelectedStartMonth="7月","JUL",IF(SelectedStartMonth="8月","AUG",IF(SelectedStartMonth="9月","SEP",IF(SelectedStartMonth="10月","OCT",IF(SelectedStartMonth="11月","NOV",IF(SelectedStartMonth="12月","DEC",)))))))))))) -> JAN | E28: =ByNextMonth -> FEB | F28: MAR | G28: APR | H28: MAY | I28: JUN | J28: JUL | K28: AUG | L28: SEP | M28: OCT | N28: NOV | O28: DEC
D32: =IF(SelectedStartMonth="1月","JAN",IF(SelectedStartMonth="2月","FEB",IF(SelectedStartMonth="3月","MAR",IF(SelectedStartMonth="4月","APR",IF(SelectedStartMonth="5月","MAY",IF(SelectedStartMonth="6月","JUN",IF(SelectedStartMonth="7月","JUL",IF(SelectedStartMonth="8月","AUG",IF(SelectedStartMonth="9月","SEP",IF(SelectedStartMonth="10月","OCT",IF(SelectedStartMonth="11月","NOV",IF(SelectedStartMonth="12月","DEC",)))))))))))) -> JAN | E32: =ByNextMonth -> FEB | F32: MAR | G32: APR | H32: MAY | I32: JUN | J32: JUL | K32: AUG | L32: SEP | M32: OCT | N32: NOV | O32: DEC
D40: =IF(SelectedStartMonth="1月","JAN",IF(SelectedStartMonth="2月","FEB",IF(SelectedStartMonth="3月","MAR",IF(SelectedStartMonth="4月","APR",IF(SelectedStartMonth="5月","MAY",IF(SelectedStartMonth="6月","JUN",IF(SelectedStartMonth="7月","JUL",IF(SelectedStartMonth="8月","AUG",IF(SelectedStartMonth="9月","SEP",IF(SelectedStartMonth="10月","OCT",IF(SelectedStartMonth="11月","NOV",IF(SelectedStartMonth="12月","DEC",)))))))))))) -> JAN | E40: =ByNextMonth -> FEB | F40: MAR | G40: APR | H40: MAY | I40: JUN | J40: JUL | K40: AUG | L40: SEP | M40: OCT | N40: NOV | O40: DEC
